[Event "Titled Tuesday Blitz April 26 Late 2022"]
[White "Vega Gutierrez, Sabrina"]
[Black "Smail, Benedict"]
[WhiteFideId "2219026"]
[BlackFideId "2050480"]
[WhiteElo "2286"]
[BlackElo "2070"]
[Result "0-1"]
[Round "08"]
[TimeControl "180+1"]
[Date "2022.04.26"]
[WhiteClock "0:00:16"]
[BlackClock "0:00:18"]

1. e4 {[%clk 0:03:00]}  c5 {[%clk 0:02:59]} 2. Nf3 {[%clk 0:03:01]}  d6 {[%clk 0:02:58]} 3. d4 {[%clk 0:03:01]}  cxd4 {[%clk 0:02:58]} 4. Nxd4 {[%clk 0:03:02]}  Nf6 {[%clk 0:02:58]} 5. Nc3 {[%clk 0:03:02]}  g6 {[%clk 0:02:57]} 6. Be3 {[%clk 0:02:59]}  Bg7 {[%clk 0:02:57]} 7. f3 {[%clk 0:03:00]}  O-O {[%clk 0:02:57]} 8. Qd2 {[%clk 0:02:59]}  Nc6 {[%clk 0:02:57]} 9. O-O-O {[%clk 0:02:59]}  d5 {[%clk 0:02:57]} 10. Nxc6 {[%clk 0:02:59]}  bxc6 {[%clk 0:02:57]} 11. Bh6 {[%clk 0:03:00]}  Qb6 {[%clk 0:02:01]} 12. Bxg7 {[%clk 0:02:54]}  Kxg7 {[%clk 0:02:01]} 13. h4 {[%clk 0:02:39]}  dxe4 {[%clk 0:01:52]} 14. fxe4 {[%clk 0:02:35]}  Bg4 {[%clk 0:01:47]} 15. Re1 {[%clk 0:02:04]}  Rfd8 {[%clk 0:01:35]} 16. Qf4 {[%clk 0:02:03]}  Rab8 {[%clk 0:01:31]} 17. b3 {[%clk 0:01:59]}  Qd4 {[%clk 0:01:06]} 18. Kb2 {[%clk 0:01:52]}  e5 {[%clk 0:01:00]} 19. Qg5 {[%clk 0:01:39]}  h6 {[%clk 0:00:58]} 20. Qe3 {[%clk 0:01:38]}  Qxe3 {[%clk 0:00:45]} 21. Rxe3 {[%clk 0:01:39]}  Rd2 {[%clk 0:00:45]} 22. g3 {[%clk 0:01:22]}  Rbd8 {[%clk 0:00:42]} 23. Bc4 {[%clk 0:01:08]}  Rg2 {[%clk 0:00:32]} 24. Rhe1 {[%clk 0:01:03]}  Rdd2 {[%clk 0:00:31]} 25. Bd3 {[%clk 0:00:42]}  Be6 {[%clk 0:00:28]} 26. Nb1 {[%clk 0:00:40]}  Rdf2 {[%clk 0:00:27]} 27. Be2 {[%clk 0:00:24]}  Bg4 {[%clk 0:00:24]} 28. Bxg4 {[%clk 0:00:20]}  Rxc2+ {[%clk 0:00:22]} 29. Ka3 {[%clk 0:00:20]}  Rxa2+ {[%clk 0:00:22]} 30. Kb4 {[%clk 0:00:20]}  Nxg4 {[%clk 0:00:22]} 31. Rc3 {[%clk 0:00:20]}  Rgc2 {[%clk 0:00:21]} 32. Rc1 {[%clk 0:00:19]}  Rxc1 {[%clk 0:00:21]} 33. Rxc1 {[%clk 0:00:19]}  Ra6 {[%clk 0:00:20]} 34. Na3 {[%clk 0:00:18]}  Nf2 {[%clk 0:00:19]} 35. Nc4 {[%clk 0:00:16]}  Nd3+ {[%clk 0:00:18]} 0-1


[Site "https://www.chess.com"]

[Event "Titled Tuesday Blitz April 26 Late 2022"]
[White "Xu, Yi"]
[Black "Fedoseev, Vladimir"]
[WhiteFideId "8605564"]
[BlackFideId "24130737"]
[WhiteElo "2471"]
[BlackElo "2726"]
[Result "0-1"]
[Round "08"]
[TimeControl "180+1"]
[Date "2022.04.26"]
[WhiteClock "0:00:04"]
[BlackClock "0:00:03"]

1. e4 {[%clk 0:03:00]}  c6 {[%clk 0:00:59]} 2. d4 {[%clk 0:02:59]}  d5 {[%clk 0:00:58]} 3. e5 {[%clk 0:02:59]}  c5 {[%clk 0:00:59]} 4. Nf3 {[%clk 0:02:55]}  cxd4 {[%clk 0:00:57]} 5. Qxd4 {[%clk 0:02:54]}  Nc6 {[%clk 0:00:57]} 6. Qf4 {[%clk 0:02:54]}  g6 {[%clk 0:00:57]} 7. Nc3 {[%clk 0:02:00]}  d4 {[%clk 0:00:57]} 8. Bc4 {[%clk 0:01:35]}  Bf5 {[%clk 0:00:55]} 9. Ne2 {[%clk 0:01:29]}  Bh6 {[%clk 0:00:54]} 10. Qg3 {[%clk 0:01:30]}  Bxc2 {[%clk 0:00:52]} 11. Bxh6 {[%clk 0:01:19]}  Nxh6 {[%clk 0:00:52]} 12. Qf4 {[%clk 0:01:19]}  Nf5 {[%clk 0:00:50]} 13. g4 {[%clk 0:01:17]}  d3 {[%clk 0:00:47]} 14. Nc3 {[%clk 0:00:59]}  d2+ {[%clk 0:00:46]} 15. Qxd2 {[%clk 0:00:51]}  Nfd4 {[%clk 0:00:35]} 16. Nxd4 {[%clk 0:00:48]}  Nxd4 {[%clk 0:00:35]} 17. Qf4 {[%clk 0:00:32]}  e6 {[%clk 0:00:33]} 18. O-O {[%clk 0:00:23]}  Rc8 {[%clk 0:00:27]} 19. Bb5+ {[%clk 0:00:19]}  Kf8 {[%clk 0:00:16]} 20. Rad1 {[%clk 0:00:19]}  Bxd1 {[%clk 0:00:15]} 21. Rxd1 {[%clk 0:00:20]}  g5 {[%clk 0:00:12]} 22. Qxd4 {[%clk 0:00:19]}  Qxd4 {[%clk 0:00:12]} 23. Rxd4 {[%clk 0:00:19]}  a6 {[%clk 0:00:13]} 24. Ba4 {[%clk 0:00:16]}  Rc5 {[%clk 0:00:13]} 25. Re4 {[%clk 0:00:09]}  Ke7 {[%clk 0:00:13]} 26. Kf1 {[%clk 0:00:08]}  Rd8 {[%clk 0:00:11]} 27. Ke2 {[%clk 0:00:08]}  b5 {[%clk 0:00:10]} 28. Bb3 {[%clk 0:00:09]}  h6 {[%clk 0:00:10]} 29. h3 {[%clk 0:00:08]}  a5 {[%clk 0:00:09]} 30. a3 {[%clk 0:00:08]}  Rb8 {[%clk 0:00:08]} 31. Re3 {[%clk 0:00:07]}  b4 {[%clk 0:00:08]} 32. Na4 {[%clk 0:00:05]}  Rc1 {[%clk 0:00:08]} 33. axb4 {[%clk 0:00:05]}  Rxb4 {[%clk 0:00:07]} 34. f3 {[%clk 0:00:03]}  Rb5 {[%clk 0:00:07]} 35. Rd3 {[%clk 0:00:03]}  Rxe5+ {[%clk 0:00:06]} 36. Kd2 {[%clk 0:00:03]}  Rh1 {[%clk 0:00:07]} 37. Nc3 {[%clk 0:00:03]}  Rh2+ {[%clk 0:00:07]} 38. Kc1 {[%clk 0:00:03]}  Re1+ {[%clk 0:00:07]} 39. Bd1 {[%clk 0:00:03]}  Rxh3 {[%clk 0:00:07]} 40. Ne4 {[%clk 0:00:03]}  Rhh1 {[%clk 0:00:06]} 41. Nf2 {[%clk 0:00:02]}  Rhf1 {[%clk 0:00:05]} 42. Rd2 {[%clk 0:00:02]}  f5 {[%clk 0:00:05]} 43. Kc2 {[%clk 0:00:02]}  Kf6 {[%clk 0:00:05]} 44. gxf5 {[%clk 0:00:02]}  exf5 {[%clk 0:00:06]} 45. Nd3 {[%clk 0:00:03]}  Re3 {[%clk 0:00:05]} 46. Be2 {[%clk 0:00:03]}  Rg1 {[%clk 0:00:05]} 47. f4 {[%clk 0:00:03]}  g4 {[%clk 0:00:05]} 48. Ne5 {[%clk 0:00:03]}  g3 {[%clk 0:00:05]} 49. Rd6+ {[%clk 0:00:04]}  Ke7 {[%clk 0:00:05]} 50. Rd7+ {[%clk 0:00:04]}  Ke8 {[%clk 0:00:05]} 51. Bb5 {[%clk 0:00:05]}  Rg2+ {[%clk 0:00:05]} 52. Kd1 {[%clk 0:00:04]}  Rb3 {[%clk 0:00:05]} 53. Rb7+ {[%clk 0:00:04]}  Kf8 {[%clk 0:00:04]} 54. Rf7+ {[%clk 0:00:03]}  Kg8 {[%clk 0:00:04]} 55. Bc4 {[%clk 0:00:03]}  Rb4 {[%clk 0:00:05]} 56. Rc7+ {[%clk 0:00:04]}  Kf8 {[%clk 0:00:04]} 57. Rf7+ {[%clk 0:00:04]}  Ke8 {[%clk 0:00:04]} 58. Rg7 {[%clk 0:00:04]}  Rgxb2 {[%clk 0:00:03]} 59. Bf7+ {[%clk 0:00:04]}  Kd8 {[%clk 0:00:03]} 60. Be6 {[%clk 0:00:04]}  Rd4+ {[%clk 0:00:02]} 61. Ke1 {[%clk 0:00:04]}  Re4+ {[%clk 0:00:03]} 62. Kf1 {[%clk 0:00:04]}  Rf2+ {[%clk 0:00:03]} 63. Kg1 {[%clk 0:00:04]}  Re1# {[%clk 0:00:03]} 0-1


[Site "https://www.chess.com"]

[Event "Titled Tuesday Blitz April 26 Late 2022"]
[White "Aigner, Michael"]
[Black "Derraugh, Geordie"]
[WhiteFideId "2017288"]
[BlackFideId "2603950"]
[WhiteElo "2395"]
[BlackElo "2116"]
[Result "0-1"]
[Round "09"]
[TimeControl "180+1"]
[Date "2022.04.26"]
[WhiteClock "0:00:12"]
[BlackClock "0:00:19"]

1. e4 {[%clk 0:03:00]}  c5 {[%clk 0:02:59]} 2. Nc3 {[%clk 0:03:00]}  d6 {[%clk 0:02:59]} 3. g3 {[%clk 0:03:01]}  Nf6 {[%clk 0:02:59]} 4. Bg2 {[%clk 0:03:02]}  g6 {[%clk 0:02:59]} 5. d3 {[%clk 0:03:02]}  Bg7 {[%clk 0:02:59]} 6. h3 {[%clk 0:03:02]}  O-O {[%clk 0:03:00]} 7. f4 {[%clk 0:03:03]}  Nc6 {[%clk 0:03:00]} 8. Nf3 {[%clk 0:03:02]}  Rb8 {[%clk 0:03:00]} 9. O-O {[%clk 0:03:01]}  b5 {[%clk 0:03:00]} 10. Ne2 {[%clk 0:03:00]}  c4 {[%clk 0:02:58]} 11. Ne1 {[%clk 0:02:49]}  Qc7 {[%clk 0:02:57]} 12. d4 {[%clk 0:02:47]}  e5 {[%clk 0:02:51]} 13. fxe5 {[%clk 0:02:46]}  dxe5 {[%clk 0:02:52]} 14. d5 {[%clk 0:02:47]}  Nd4 {[%clk 0:02:48]} 15. Be3 {[%clk 0:02:38]}  Nxe2+ {[%clk 0:02:43]} 16. Qxe2 {[%clk 0:02:37]}  Nh5 {[%clk 0:02:33]} 17. Kh2 {[%clk 0:01:52]}  f5 {[%clk 0:02:33]} 18. c3 {[%clk 0:01:46]}  f4 {[%clk 0:02:24]} 19. Bf2 {[%clk 0:01:46]}  fxg3+ {[%clk 0:02:19]} 20. Bxg3 {[%clk 0:01:47]}  Rxf1 {[%clk 0:02:11]} 21. Qxf1 {[%clk 0:01:43]}  Nxg3 {[%clk 0:02:11]} 22. Kxg3 {[%clk 0:01:43]}  Bh6 {[%clk 0:02:08]} 23. Kh2 {[%clk 0:01:40]}  Bf4+ {[%clk 0:02:04]} 24. Kh1 {[%clk 0:01:40]}  Bd7 {[%clk 0:02:04]} 25. Nf3 {[%clk 0:01:37]}  Rf8 {[%clk 0:02:02]} 26. Qg1 {[%clk 0:01:29]}  Qc8 {[%clk 0:02:02]} 27. Qf1 {[%clk 0:01:00]}  Bg3 {[%clk 0:01:55]} 28. Kg1 {[%clk 0:00:58]}  Rf4 {[%clk 0:01:53]} 29. Rd1 {[%clk 0:00:46]}  Rxe4 {[%clk 0:01:42]} 30. Ng5 {[%clk 0:00:41]}  Rf4 {[%clk 0:01:30]} 31. Qe2 {[%clk 0:00:41]}  Qc5+ {[%clk 0:00:40]} 32. Kh1 {[%clk 0:00:40]}  Rf2 {[%clk 0:00:38]} 33. Qe4 {[%clk 0:00:37]}  Bf5 {[%clk 0:00:37]} 34. Ne6 {[%clk 0:00:23]}  Bxe4 {[%clk 0:00:35]} 35. Nxc5 {[%clk 0:00:20]}  Bxg2+ {[%clk 0:00:34]} 36. Kg1 {[%clk 0:00:21]}  Bxh3 {[%clk 0:00:22]} 37. d6 {[%clk 0:00:19]}  Rxb2 {[%clk 0:00:21]} 38. d7 {[%clk 0:00:18]}  Bxd7 {[%clk 0:00:20]} 39. Rxd7 {[%clk 0:00:18]}  Bf2+ {[%clk 0:00:20]} 40. Kf1 {[%clk 0:00:16]}  Bxc5 {[%clk 0:00:21]} 41. Rd5 {[%clk 0:00:14]}  Bb6 {[%clk 0:00:20]} 42. Rxe5 {[%clk 0:00:14]}  Kf7 {[%clk 0:00:19]} 43. a3 {[%clk 0:00:12]}  Rb3 {[%clk 0:00:19]} 0-1


[Site "https://www.chess.com"]

[Event "Titled Tuesday Blitz April 26 Late 2022"]
[White "Alinasab, Mobina"]
[Black "Tanenbaum, Zachary"]
[WhiteFideId "12528897"]
[BlackFideId "2060850"]
[WhiteElo "2031"]
[BlackElo "2168"]
[Result "1-0"]
[Round "09"]
[TimeControl "180+1"]
[Date "2022.04.26"]
[WhiteClock "0:01:55"]
[BlackClock "0:00:03"]

1. e4 {[%clk 0:03:00]}  e5 {[%clk 0:03:00]} 2. Nf3 {[%clk 0:03:00]}  Nc6 {[%clk 0:03:00]} 3. Bb5 {[%clk 0:03:00]}  a6 {[%clk 0:03:00]} 4. Ba4 {[%clk 0:03:01]}  d6 {[%clk 0:03:00]} 5. O-O {[%clk 0:03:01]}  Nf6 {[%clk 0:03:01]} 6. Re1 {[%clk 0:02:58]}  Be7 {[%clk 0:03:01]} 7. c3 {[%clk 0:02:58]}  O-O {[%clk 0:03:01]} 8. d4 {[%clk 0:02:58]}  b5 {[%clk 0:03:02]} 9. Bc2 {[%clk 0:02:58]}  Bg4 {[%clk 0:03:01]} 10. Be3 {[%clk 0:02:57]}  Re8 {[%clk 0:02:59]} 11. Nbd2 {[%clk 0:02:57]}  Bf8 {[%clk 0:02:59]} 12. a4 {[%clk 0:02:57]}  Bh5 {[%clk 0:02:43]} 13. h3 {[%clk 0:02:51]}  Bg6 {[%clk 0:02:43]} 14. d5 {[%clk 0:02:48]}  Ne7 {[%clk 0:02:40]} 15. Bd3 {[%clk 0:02:46]}  Nfxd5 {[%clk 0:02:05]} 16. axb5 {[%clk 0:02:45]}  Nxe3 {[%clk 0:02:05]} 17. Rxe3 {[%clk 0:02:45]}  axb5 {[%clk 0:02:05]} 18. Bxb5 {[%clk 0:02:45]}  c6 {[%clk 0:02:06]} 19. Bd3 {[%clk 0:02:41]}  Qc7 {[%clk 0:01:53]} 20. Re1 {[%clk 0:02:29]}  d5 {[%clk 0:01:38]} 21. Nh4 {[%clk 0:02:24]}  Red8 {[%clk 0:01:29]} 22. Nxg6 {[%clk 0:02:23]}  Nxg6 {[%clk 0:01:28]} 23. Rxa8 {[%clk 0:02:22]}  Rxa8 {[%clk 0:01:28]} 24. exd5 {[%clk 0:02:22]}  cxd5 {[%clk 0:01:24]} 25. Bxg6 {[%clk 0:02:22]}  hxg6 {[%clk 0:01:25]} 26. Nf3 {[%clk 0:02:23]}  Qb7 {[%clk 0:00:22]} 27. Nxe5 {[%clk 0:02:19]}  Ra2 {[%clk 0:00:20]} 28. Nd3 {[%clk 0:02:17]}  Qa7 {[%clk 0:00:14]} 29. Qf3 {[%clk 0:02:16]}  d4 {[%clk 0:00:12]} 30. c4 {[%clk 0:02:14]}  Ra6 {[%clk 0:00:12]} 31. Re8 {[%clk 0:02:12]}  Rf6 {[%clk 0:00:12]} 32. Qd5 {[%clk 0:02:10]}  Qa1+ {[%clk 0:00:11]} 33. Kh2 {[%clk 0:02:10]}  Re6 {[%clk 0:00:04]} 34. Rxe6 {[%clk 0:02:03]}  fxe6 {[%clk 0:00:05]} 35. Qxe6+ {[%clk 0:02:03]}  Kh7 {[%clk 0:00:05]} 36. Ne5 {[%clk 0:02:00]}  Qxb2 {[%clk 0:00:03]} 37. Qxg6+ {[%clk 0:02:00]}  Kg8 {[%clk 0:00:03]} 38. Qf7+ {[%clk 0:01:55]}  Kh7 {[%clk 0:00:03]} 39. Qxf8 {[%clk 0:01:55]}  d3 {[%clk 0:00:03]} 40. Qf5+ {[%clk 0:01:54]}  Kg8 {[%clk 0:00:03]} 41. Nxd3 {[%clk 0:01:55]}  Qd4 {[%clk 0:00:03]} 42. Qd5+ {[%clk 0:01:55]} 1-0


[Site "https://www.chess.com"]

[Event "Titled Tuesday Blitz April 26 Late 2022"]
[White "Andreikin, Dmitry"]
[Black "Bluebaum, Matthias"]
[WhiteFideId "4158814"]
[BlackFideId "24651516"]
[WhiteElo "2736"]
[BlackElo "2550"]
[Result "1-0"]
[Round "09"]
[TimeControl "180+1"]
[Date "2022.04.26"]
[WhiteClock "0:00:07"]
[BlackClock "0:00:07"]

1. d4 {[%clk 0:03:00]}  Nf6 {[%clk 0:02:59]} 2. Nf3 {[%clk 0:02:59]}  d5 {[%clk 0:03:00]} 3. c4 {[%clk 0:02:59]}  e6 {[%clk 0:03:00]} 4. Nc3 {[%clk 0:02:59]}  Bb4 {[%clk 0:03:00]} 5. e3 {[%clk 0:02:56]}  O-O {[%clk 0:03:00]} 6. Bd2 {[%clk 0:02:57]}  b6 {[%clk 0:02:54]} 7. cxd5 {[%clk 0:02:55]}  exd5 {[%clk 0:02:55]} 8. Rc1 {[%clk 0:02:54]}  Re8 {[%clk 0:02:45]} 9. a3 {[%clk 0:02:33]}  Bf8 {[%clk 0:02:44]} 10. Be2 {[%clk 0:02:26]}  Bb7 {[%clk 0:02:43]} 11. Ne5 {[%clk 0:02:22]}  c5 {[%clk 0:02:42]} 12. O-O {[%clk 0:02:20]}  Nc6 {[%clk 0:02:41]} 13. Nxc6 {[%clk 0:02:14]}  Bxc6 {[%clk 0:02:42]} 14. dxc5 {[%clk 0:02:13]}  bxc5 {[%clk 0:02:42]} 15. Bf3 {[%clk 0:02:13]}  Rc8 {[%clk 0:02:41]} 16. Ne2 {[%clk 0:02:11]}  Bb5 {[%clk 0:02:22]} 17. Re1 {[%clk 0:02:07]}  Qb6 {[%clk 0:02:02]} 18. Bc3 {[%clk 0:02:01]}  Rcd8 {[%clk 0:02:01]} 19. b4 {[%clk 0:01:53]}  cxb4 {[%clk 0:01:55]} 20. axb4 {[%clk 0:01:50]}  Bxb4 {[%clk 0:01:54]} 21. Rb1 {[%clk 0:01:41]}  Bxe2 {[%clk 0:01:43]} 22. Rxe2 {[%clk 0:01:30]}  a5 {[%clk 0:01:43]} 23. Reb2 {[%clk 0:01:30]}  Ne4 {[%clk 0:00:52]} 24. Bxb4 {[%clk 0:01:26]}  axb4 {[%clk 0:00:53]} 25. Rxb4 {[%clk 0:01:25]}  Qf6 {[%clk 0:00:53]} 26. Qd4 {[%clk 0:01:15]}  Qg6 {[%clk 0:00:53]} 27. Rd1 {[%clk 0:01:04]}  Ng5 {[%clk 0:00:52]} 28. Qg4 {[%clk 0:00:56]}  h5 {[%clk 0:00:48]} 29. Qxh5 {[%clk 0:00:51]}  Qxh5 {[%clk 0:00:25]} 30. Bxh5 {[%clk 0:00:51]}  Ne6 {[%clk 0:00:26]} 31. g3 {[%clk 0:00:41]}  Rd6 {[%clk 0:00:25]} 32. Rb7 {[%clk 0:00:39]}  g6 {[%clk 0:00:25]} 33. Bg4 {[%clk 0:00:38]}  Red8 {[%clk 0:00:21]} 34. Rb4 {[%clk 0:00:25]}  f5 {[%clk 0:00:17]} 35. Be2 {[%clk 0:00:22]}  Kg7 {[%clk 0:00:17]} 36. Kg2 {[%clk 0:00:17]}  d4 {[%clk 0:00:18]} 37. exd4 {[%clk 0:00:13]}  Rxd4 {[%clk 0:00:18]} 38. Rdxd4 {[%clk 0:00:13]}  Rxd4 {[%clk 0:00:19]} 39. Rb6 {[%clk 0:00:12]}  Nc5 {[%clk 0:00:13]} 40. h4 {[%clk 0:00:10]}  Rd2 {[%clk 0:00:13]} 41. Kf1 {[%clk 0:00:10]}  Ra2 {[%clk 0:00:13]} 42. f3 {[%clk 0:00:05]}  Ra1+ {[%clk 0:00:12]} 43. Kf2 {[%clk 0:00:06]}  Ra2 {[%clk 0:00:13]} 44. Ke3 {[%clk 0:00:06]}  Ra7 {[%clk 0:00:10]} 45. Bc4 {[%clk 0:00:04]}  Re7+ {[%clk 0:00:11]} 46. Kd4 {[%clk 0:00:04]}  Nd7 {[%clk 0:00:08]} 47. Rb7 {[%clk 0:00:04]}  Kf6 {[%clk 0:00:09]} 48. Bb5 {[%clk 0:00:05]}  Nf8 {[%clk 0:00:08]} 49. Rxe7 {[%clk 0:00:05]}  Kxe7 {[%clk 0:00:09]} 50. Ke5 {[%clk 0:00:06]}  Ne6 {[%clk 0:00:03]} 51. Bd3 {[%clk 0:00:06]}  Ng7 {[%clk 0:00:02]} 52. g4 {[%clk 0:00:07]}  fxg4 {[%clk 0:00:02]} 53. fxg4 {[%clk 0:00:08]}  Kf7 {[%clk 0:00:02]} 54. Bc4+ {[%clk 0:00:08]}  Ke7 {[%clk 0:00:02]} 55. Bd5 {[%clk 0:00:09]}  Ne8 {[%clk 0:00:03]} 56. Be6 {[%clk 0:00:09]}  Nf6 {[%clk 0:00:02]} 57. g5 {[%clk 0:00:09]}  Ne8 {[%clk 0:00:03]} 58. Bd5 {[%clk 0:00:08]}  Nc7 {[%clk 0:00:03]} 59. Bc4 {[%clk 0:00:08]}  Ne8 {[%clk 0:00:03]} 60. Bb5 {[%clk 0:00:08]}  Ng7 {[%clk 0:00:03]} 61. Bd3 {[%clk 0:00:08]}  Kf7 {[%clk 0:00:04]} 62. Kd6 {[%clk 0:00:09]}  Nh5 {[%clk 0:00:04]} 63. Bc4+ {[%clk 0:00:08]}  Kg7 {[%clk 0:00:04]} 64. Ke5 {[%clk 0:00:08]}  Ng3 {[%clk 0:00:04]} 65. Bd3 {[%clk 0:00:07]}  Kf7 {[%clk 0:00:04]} 66. Kf4 {[%clk 0:00:07]}  Nh5+ {[%clk 0:00:05]} 67. Ke4 {[%clk 0:00:07]}  Ng3+ {[%clk 0:00:05]} 68. Ke5 {[%clk 0:00:07]}  Nh5 {[%clk 0:00:06]} 69. Bc4+ {[%clk 0:00:07]}  Kg7 {[%clk 0:00:05]} 70. Be2 {[%clk 0:00:07]}  Ng3 {[%clk 0:00:06]} 71. Bg4 {[%clk 0:00:07]}  Nf1 {[%clk 0:00:05]} 72. Kf4 {[%clk 0:00:06]}  Nd2 {[%clk 0:00:05]} 73. Be6 {[%clk 0:00:06]}  Nb1 {[%clk 0:00:06]} 74. Bc4 {[%clk 0:00:06]}  Nc3 {[%clk 0:00:05]} 75. Ke3 {[%clk 0:00:06]}  Na4 {[%clk 0:00:05]} 76. Kd4 {[%clk 0:00:06]}  Kf8 {[%clk 0:00:02]} 77. Bb5 {[%clk 0:00:05]}  Nb6 {[%clk 0:00:03]} 78. Kc5 {[%clk 0:00:05]}  Nc8 {[%clk 0:00:03]} 79. Bd3 {[%clk 0:00:06]}  Ne7 {[%clk 0:00:04]} 80. Kd6 {[%clk 0:00:06]}  Kf7 {[%clk 0:00:03]} 81. Kd7 {[%clk 0:00:06]}  Kf8 {[%clk 0:00:03]} 82. Ke6 {[%clk 0:00:07]}  Nc6 {[%clk 0:00:01]} 83. Bxg6 {[%clk 0:00:06]}  Nd4+ {[%clk 0:00:02]} 84. Kf6 {[%clk 0:00:07]}  Nf3 {[%clk 0:00:03]} 85. Bh7 {[%clk 0:00:03]}  Nxh4 {[%clk 0:00:03]} 86. Be4 {[%clk 0:00:03]}  Kg8 {[%clk 0:00:02]} 87. Bd5+ {[%clk 0:00:04]}  Kh8 {[%clk 0:00:02]} 88. Be6 {[%clk 0:00:03]}  Kh7 {[%clk 0:00:03]} 89. Bg4 {[%clk 0:00:04]}  Kh8 {[%clk 0:00:03]} 90. Kf7 {[%clk 0:00:03]}  Kh7 {[%clk 0:00:03]} 91. Bh5 {[%clk 0:00:03]}  Kh8 {[%clk 0:00:03]} 92. Be2 {[%clk 0:00:03]}  Kh7 {[%clk 0:00:01]} 93. Bd3+ {[%clk 0:00:04]}  Kh8 {[%clk 0:00:02]} 94. Be4 {[%clk 0:00:04]}  Ng6 {[%clk 0:00:02]} 95. Kxg6 {[%clk 0:00:04]}  Kg8 {[%clk 0:00:02]} 96. Kf6 {[%clk 0:00:04]}  Kh8 {[%clk 0:00:03]} 97. g6 {[%clk 0:00:05]}  Kg8 {[%clk 0:00:04]} 98. Bd5+ {[%clk 0:00:05]}  Kh8 {[%clk 0:00:05]} 99. g7+ {[%clk 0:00:06]}  Kh7 {[%clk 0:00:06]} 100. g8=Q+ {[%clk 0:00:06]}  Kh6 {[%clk 0:00:07]} 101. Qh8# {[%clk 0:00:07]} 1-0


[Site "https://www.chess.com"]

[Event "Titled Tuesday Blitz April 26 Late 2022"]
[White "Bryakin, Mikhail"]
[Black "Oparin, Grigoriy"]
[WhiteFideId "4165314"]
[BlackFideId "24125890"]
[WhiteElo "2417"]
[BlackElo "2665"]
[Result "0-1"]
[Round "09"]
[TimeControl "180+1"]
[Date "2022.04.26"]
[WhiteClock "0:00:26"]
[BlackClock "0:00:13"]

1. e4 {[%clk 0:03:00]}  c5 {[%clk 0:02:58]} 2. Nf3 {[%clk 0:03:00]}  d6 {[%clk 0:02:59]} 3. Bb5+ {[%clk 0:02:58]}  Bd7 {[%clk 0:02:59]} 4. a4 {[%clk 0:02:58]}  Nf6 {[%clk 0:02:58]} 5. d3 {[%clk 0:02:57]}  g6 {[%clk 0:02:58]} 6. O-O {[%clk 0:02:58]}  Bg7 {[%clk 0:02:58]} 7. Nc3 {[%clk 0:02:54]}  O-O {[%clk 0:02:58]} 8. Bxd7 {[%clk 0:02:51]}  Nbxd7 {[%clk 0:02:59]} 9. Bf4 {[%clk 0:02:51]}  Qb6 {[%clk 0:02:43]} 10. Qd2 {[%clk 0:02:49]}  Rfe8 {[%clk 0:02:36]} 11. b3 {[%clk 0:02:48]}  Qc6 {[%clk 0:02:34]} 12. Rfe1 {[%clk 0:02:46]}  b6 {[%clk 0:02:33]} 13. h3 {[%clk 0:02:45]}  a6 {[%clk 0:02:34]} 14. e5 {[%clk 0:02:44]}  dxe5 {[%clk 0:02:32]} 15. Nxe5 {[%clk 0:02:45]}  Nxe5 {[%clk 0:02:25]} 16. Bxe5 {[%clk 0:02:45]}  b5 {[%clk 0:02:16]} 17. axb5 {[%clk 0:02:45]}  axb5 {[%clk 0:02:16]} 18. Qe2 {[%clk 0:02:45]}  h5 {[%clk 0:02:00]} 19. Rxa8 {[%clk 0:02:41]}  Rxa8 {[%clk 0:02:01]} 20. Ne4 {[%clk 0:02:41]}  Nxe4 {[%clk 0:01:49]} 21. Qxe4 {[%clk 0:02:42]}  Qxe4 {[%clk 0:01:49]} 22. Rxe4 {[%clk 0:02:42]}  f6 {[%clk 0:01:43]} 23. Bc3 {[%clk 0:02:35]}  e5 {[%clk 0:01:38]} 24. b4 {[%clk 0:02:32]}  Ra2 {[%clk 0:01:34]} 25. Re2 {[%clk 0:02:27]}  Bf8 {[%clk 0:01:30]} 26. bxc5 {[%clk 0:02:25]}  Bxc5 {[%clk 0:01:31]} 27. g4 {[%clk 0:02:25]}  Kf7 {[%clk 0:01:20]} 28. Be1 {[%clk 0:02:18]}  b4 {[%clk 0:01:10]} 29. Kf1 {[%clk 0:02:17]}  Ra1 {[%clk 0:01:04]} 30. f3 {[%clk 0:02:06]}  Bd4 {[%clk 0:00:55]} 31. Kg2 {[%clk 0:02:02]}  Rb1 {[%clk 0:00:55]} 32. Bg3 {[%clk 0:01:57]}  hxg4 {[%clk 0:00:40]} 33. hxg4 {[%clk 0:01:56]}  g5 {[%clk 0:00:40]} 34. Bf2 {[%clk 0:01:56]}  Bc3 {[%clk 0:00:37]} 35. Be3 {[%clk 0:01:52]}  Ke6 {[%clk 0:00:34]} 36. Bf2 {[%clk 0:01:53]}  Kd5 {[%clk 0:00:35]} 37. Be3 {[%clk 0:01:53]}  Rb2 {[%clk 0:00:32]} 38. Kf1 {[%clk 0:01:53]}  Ra2 {[%clk 0:00:33]} 39. Bf2 {[%clk 0:01:53]}  Ra1+ {[%clk 0:00:32]} 40. Kg2 {[%clk 0:01:53]}  Ra2 {[%clk 0:00:28]} 41. Kf1 {[%clk 0:01:53]}  Ra8 {[%clk 0:00:28]} 42. Be3 {[%clk 0:01:53]}  Rc8 {[%clk 0:00:28]} 43. Bf2 {[%clk 0:01:53]}  Rh8 {[%clk 0:00:28]} 44. Kg2 {[%clk 0:01:53]}  Rh7 {[%clk 0:00:28]} 45. Be3 {[%clk 0:01:53]}  Rc7 {[%clk 0:00:25]} 46. Kf1 {[%clk 0:01:53]}  Rc6 {[%clk 0:00:23]} 47. Bf2 {[%clk 0:01:53]}  Ra6 {[%clk 0:00:23]} 48. Be3 {[%clk 0:01:52]}  Kc6 {[%clk 0:00:23]} 49. Bf2 {[%clk 0:01:50]}  Kb5 {[%clk 0:00:24]} 50. Be3 {[%clk 0:01:45]}  Ra1+ {[%clk 0:00:22]} 51. Kg2 {[%clk 0:01:43]}  Ra8 {[%clk 0:00:22]} 52. Kf1 {[%clk 0:01:42]}  Rc8 {[%clk 0:00:22]} 53. Bf2 {[%clk 0:01:41]}  Ka4 {[%clk 0:00:22]} 54. Re4 {[%clk 0:01:25]}  Bd4 {[%clk 0:00:22]} 55. Re2 {[%clk 0:01:20]}  Ka3 {[%clk 0:00:21]} 56. Bxd4 {[%clk 0:01:11]}  exd4 {[%clk 0:00:22]} 57. Ke1 {[%clk 0:01:12]}  Kb2 {[%clk 0:00:21]} 58. Kd1 {[%clk 0:01:12]}  Rc6 {[%clk 0:00:16]} 59. Re4 {[%clk 0:01:04]}  Rxc2 {[%clk 0:00:14]} 60. Rxd4 {[%clk 0:01:05]}  b3 {[%clk 0:00:15]} 61. Rd6 {[%clk 0:01:03]}  Kc3 {[%clk 0:00:14]} 62. Rxf6 {[%clk 0:00:54]}  Rd2+ {[%clk 0:00:14]} 63. Ke1 {[%clk 0:00:52]}  Rh2 {[%clk 0:00:13]} 64. Rc6+ {[%clk 0:00:48]}  Kxd3 {[%clk 0:00:13]} 65. Rd6+ {[%clk 0:00:48]}  Ke3 {[%clk 0:00:14]} 66. Re6+ {[%clk 0:00:43]}  Kxf3 {[%clk 0:00:14]} 67. Rf6+ {[%clk 0:00:37]}  Kxg4 {[%clk 0:00:13]} 68. Kf1 {[%clk 0:00:26]}  b2 {[%clk 0:00:13]} 0-1


[Site "https://www.chess.com"]